bitfinex/quotes_ETHUSD_20260226
["timestamp","ask_amount","ask_price","bid_price","bid_amount"]
[1772089980917,0.5,2068.8,2068.5,0.001]
[1772089981423,1.70844652,2068.8,2068.5,0.001]
[1772089981944,4.83541898,2069.0,2068.5,0.001]
[1772089981945,0.002,2069.0,2068.6,0.29480544]
[1772089984851,0.502,2069.0,2068.5,0.001]
[1772089985144,0.5,2068.8,2068.5,0.001]
[1772089986047,0.5,2068.6,2068.3,0.001]
[1772089986220,0.4995,2068.4,2068.0,0.001]
[1772089986630,0.4995,2068.4,2068.0,0.002]
[1772089987625,0.4995,2068.5,2068.1,0.001]
[1772089989143,0.4995,2068.7,2068.4,0.29580544]
[1772089989359,0.4995,2068.7,2068.4,0.001]
[1772089991572,0.5015,2069.0,2068.4,0.001]
[1772089991728,0.5015,2069.0,2068.6,0.002]
[1772089991928,0.4995,2068.9,2068.6,0.002]
[1772089992256,0.4995,2068.9,2068.6,0.001]
[1772089992458,0.002,2068.8,2068.6,0.001]
[1772089992892,0.002,2068.8,2068.5,0.001]
[1772089993153,0.5015,2068.8,2068.4,0.001]
[1772089996155,0.002,2068.8,2068.4,0.001]
[1772089998384,0.502,2068.8,2068.4,0.001]
[1772090002194,0.002,2068.8,2068.4,0.001]
[1772090004706,0.002,2068.8,2068.6,0.001]
[1772090005376,0.002,2069.0,2068.7,0.4422638]
[1772090005795,0.002,2069.0,2068.6,0.001]
[1772090006595,0.002,2069.0,2068.6,1.20954684]
[1772090008208,1.21014798,2069.3,2068.8,0.4422638]
[1772090008209,0.002,2069.3,2068.8,0.4422638]
[1772090008419,0.502,2069.3,2068.6,2.98381064]
[1772090008773,0.5,2069.2,2068.7,1.333]
[1772090010902,0.5,2069.2,2068.8,1.20843]
[1772090011973,0.5,2069.2,2068.7,2.54144702]
[1772090012968,0.5,2069.1,2068.6,0.001]
[1772090013173,0.5,2068.9,2068.6,0.001]
[1772090015201,0.5,2068.8,2068.6,0.001]
[1772090016073,0.5,2068.8,2068.4,0.001]
[1772090016896,0.5,2068.8,2068.5,0.001]
[1772090024123,0.5,2068.8,2068.5,0.002]
[1772090028118,0.4995,2068.7,2068.5,0.001]
[1772090029887,0.499,2068.6,2068.4,0.001]
[1772090030291,0.499,2068.4,2068.1,0.001]
[1772090031387,1.70766678,2068.4,2068.1,0.001]
[1772090031586,0.499,2068.3,2068.1,0.001]
[1772090034520,3.26752775,2068.7,2068.2,0.002]
[1772090034724,0.499,2068.6,2068.2,0.002]
[1772090038804,1.56,2068.7,2068.2,0.002]
[1772090039122,0.499,2068.6,2068.2,0.002]
[1772090040723,0.499,2068.8,2068.2,0.002]
[1772090040924,3.27233693,2069.0,2068.3,0.002]
[1772090041223,0.499,2068.9,2068.5,0.002]
[1772090041432,0.002,2068.6,2068.5,0.002]
[1772090042196,0.002,2068.6,2068.4,0.001]
[1772090042403,0.499,2068.4,2068.1,3.791]
[1772090042602,0.499,2068.4,2068.1,0.001]
[1772090042934,0.499,2068.4,2068.0,0.001]
[1772090043706,0.499,2068.4,2068.0,1.2128958]
[1772090043902,0.499,2068.4,2068.0,0.004]
[1772090048339,0.4985,2068.3,2068.0,0.004]
[1772090051226,0.4985,2068.2,2068.0,0.001]
[1772090051426,0.4985,2068.1,2067.7,0.0011]
[1772090051741,0.4985,2068.0,2067.7,0.0011]
[1772090052240,0.4985,2068.0,2067.7,0.0041]
[1772090056755,0.002,2068.4,2067.9,0.003]
[1772090056756,0.5005,2068.4,2067.9,0.003]
[1772090057036,0.4985,2068.3,2067.8,0.003]
[1772090057238,0.4985,2068.2,2067.8,0.003]
[1772090059655,0.5005,2068.4,2067.9,0.003]
[1772090061515,0.4985,2068.3,2067.9,0.003]
[1772090061913,0.4985,2068.3,2067.7,1.21017288]
[1772090062136,0.4985,2068.3,2067.8,0.003]
[1772090063750,0.4985,2068.2,2067.8,0.003]
[1772090063961,0.4985,2068.0,2067.7,0.0011]
[1772090064250,0.4985,2068.0,2067.7,0.0041]
[1772090065743,0.4985,2068.2,2067.7,0.0041]
[1772090067982,0.4985,2068.1,2067.7,0.0041]
[1772090068134,0.4985,2068.1,2067.7,0.0011]
[1772090071554,0.4985,2068.0,2067.7,0.0011]
[1772090071959,0.29500395,2067.8,2067.5,0.001]
[1772090072260,0.49795,2067.7,2067.3,0.0052]
[1772090072465,0.49795,2067.7,2067.3,1.21450078]
[1772090072668,1.20884301,2068.1,2067.7,0.0041]
[1772090072669,0.49795,2068.1,2067.7,0.0041]
[1772090074646,0.49795,2068.3,2067.7,0.0041]
[1772090075744,0.29500395,2068.3,2067.7,0.0041]
[1772090075949,0.49795,2068.2,2067.7,0.0041]
[1772090076772,0.49795,2068.1,2067.7,0.0041]
[1772090078868,0.49795,2068.1,2067.7,0.0051]
[1772090079171,0.49995,2068.1,2067.7,0.0051]
[1772090080635,0.002,2068.1,2067.7,0.0051]
[1772090080839,0.002,2068.1,2067.9,0.0041]
[1772090082593,0.002,2068.1,2068.0,0.29910395]
[1772090083191,0.002,2068.1,2068.0,1.50800143]
[1772090083991,0.002,2068.3,2068.0,1.50800143]
[1772090084364,0.002,2068.6,2068.3,0.0041]
[1772090084673,0.49995,2068.6,2068.3,0.0041]
[1772090085071,0.49795,2068.3,2067.7,1.21415783]
[1772090085270,0.49795,2068.3,2068.0,0.0041]
[1772090090158,2.05495,2068.5,2068.0,0.0041]
[1772090091587,0.002,2068.3,2068.0,1.20889748]
[1772090091885,0.002,2068.3,2068.1,0.0041]
[1772090095289,0.002,2068.5,2068.2,0.0021]
[1772090098369,0.002,2068.5,2068.3,0.0021]
[1772090099789,0.002,2068.5,2068.0,1.20884878]
[1772090099790,0.50095,2068.5,2068.0,1.20884878]
[1772090100088,0.50095,2068.5,2068.0,1.21094878]
[1772090100280,0.49895,2068.4,2067.9,2.55192934]
[1772090100483,0.49895,2068.4,2067.9,2.55402934]
[1772090101292,0.49895,2068.4,2067.9,1.21102934]
[1772090102471,0.49895,2068.4,2067.9,0.0021]
[1772090103070,0.002,2068.5,2068.4,0.0021]
[1772090103567,0.002,2068.6,2068.4,0.0021]
[1772090103786,0.50095,2068.8,2068.6,0.0021]
[1772090103787,0.002,2068.8,2068.6,0.0021]
[1772090104397,0.50095,2068.8,2068.4,0.0021]
[1772090104800,0.50095,2068.7,2068.4,1.2086637]
[1772090105179,0.50095,2068.7,2068.4,1.2107637]
[1772090107004,0.002,2068.7,2068.4,1.2107637]
[1772090107298,0.002,2068.7,2068.5,0.0021]
[1772090107991,0.50095,2068.7,2068.1,1.21189748]
[1772090108172,0.49895,2068.5,2068.1,1.20983795]
[1772090108497,0.49895,2068.5,2068.1,0.001]
[1772090108696,0.49895,2068.3,2068.1,0.001]
[1772090109674,0.49895,2068.5,2068.1,0.0031]
[1772090110101,0.49895,2068.5,2068.1,0.001]
[1772090111009,0.49845,2068.3,2067.9,0.001]
[1772090112201,0.49845,2068.6,2068.0,0.0031]
[1772090113608,0.49845,2068.5,2067.9,0.001]
[1772090116196,1.2086637,2068.4,2068.1,0.0011]
[1772090116394,0.49845,2068.3,2068.1,0.0011]
[1772090122406,0.49845,2068.2,2068.1,0.0011]
[1772090132509,0.50045,2068.3,2068.1,0.0011]
[1772090133335,0.002,2068.3,2068.1,0.0042]
[1772090133632,0.50045,2068.3,2068.1,0.0011]
[1772090140932,0.50045,2068.3,2067.9,0.001]
[1772090141132,0.94042934,2068.2,2067.9,0.001]
[1772090141334,0.4979,2068.1,2067.9,0.001]
[1772090143933,0.4979,2067.9,2067.6,0.001]
[1772090146913,0.4979,2067.8,2067.6,0.001]
[1772090147112,0.4979,2067.7,2067.3,0.0042]
[1772090148908,1.70699773,2067.7,2067.3,0.0042]
[1772090149239,0.4979,2067.6,2067.1,1.20942383]
[1772090149419,0.4979,2067.6,2067.1,1.21362383]
[1772090149610,0.4979,2067.6,2067.2,0.0042]
[1772090156641,0.4979,2067.6,2067.4,0.0011]
[1772090159445,0.4979,2067.5,2066.9,0.0011]
[1772090159648,0.4979,2066.9,2066.4,0.0042]
[1772090160344,0.4979,2066.9,2065.8,0.0042]
[1772090160345,0.4979,2066.5,2065.8,0.0042]
[1772090160549,0.94042934,2066.3,2065.8,0.0042]
[1772090161018,0.4979,2066.2,2065.8,0.0042]
[1772090166853,0.4979,2066.0,2065.6,0.0042]
[1772090168373,0.4979,2066.2,2065.6,0.0042]
[1772090168741,0.4979,2066.4,2066.0,0.0011]
[1772090168947,0.4979,2066.1,2065.7,0.0042]
[1772090169250,0.79358954,2066.1,2065.7,0.0042]
[1772090169461,0.79358954,2065.9,2065.5,2.55451788]
[1772090169639,0.79358954,2065.9,2065.5,1.3442]
[1772090169960,0.79358954,2065.9,2065.8,0.0011]
[1772090170283,0.29568954,2065.9,2065.5,1.21565243]
[1772090170441,0.29568954,2066.3,2065.6,0.0042]
[1772090170764,0.79358954,2066.3,2065.6,0.0042]
[1772090170968,0.4979,2066.2,2065.6,0.0042]
[1772090171470,0.4979,2066.0,2065.6,0.0042]
[1772090171832,0.29568954,2065.7,2065.5,0.0011]
[1772090172043,0.4979,2065.6,2064.7,0.0042]
[1772090172253,0.4979,2065.3,2064.7,0.0042]
[1772090172458,0.4979,2065.1,2064.7,0.0042]
[1772090173473,0.4979,2065.1,2064.6,2.5538883]
[1772090174060,0.46901935,2065.0,2064.0,0.49135895]
[1772090175465,0.46901935,2064.9,2064.2,0.49135895]
[1772090176367,0.46901935,2065.1,2064.2,0.49135895]
[1772090177459,0.46901935,2065.1,2064.4,0.49135895]
[1772090179056,6.32065699,2065.8,2064.7,0.49135895]
[1772090179057,0.46901935,2065.4,2064.7,0.49135895]
[1772090179474,0.46901935,2065.4,2064.8,1.70212996]
[1772090179657,0.46901935,2065.4,2064.9,0.49135895]
[1772090180294,0.46901935,2065.6,2064.9,0.49135895]
[1772090180629,6.40097437,2066.4,2065.0,0.49135895]
[1772090180630,0.46901935,2066.1,2065.0,0.49135895]
[1772090180883,0.46901935,2066.1,2064.9,1.47968632]
[1772090180884,0.46901935,2066.1,2065.2,0.49135895]
[1772090181382,0.46901935,2066.4,2065.2,0.49135895]
[1772090181570,0.46901935,2066.2,2065.3,1.21047789]
[1772090182083,0.47001935,2065.9,2065.3,1.21047789]
[1772090184050,0.47001935,2065.9,2065.3,1.70183684]
[1772090186794,4.83979464,2066.7,2065.9,0.45269512]
[1772090186795,0.001,2066.7,2065.9,0.45269512]
[1772090187080,0.001,2066.7,2065.8,1.47968632]
[1772090187081,0.001,2066.7,2066.2,0.45269512]
[1772090187580,1.2093468,2067.3,2066.1,1.47968632]
[1772090187581,0.49345287,2067.2,2066.3,0.45269512]
[1772090187965,0.49345287,2067.1,2066.4,1.66252864]
[1772090189709,0.49345287,2067.1,2066.4,1.20983352]
[1772090190082,0.49345287,2067.0,2066.2,1.66264575]
[1772090191617,0.49345287,2067.0,2066.3,0.45269512]
[1772090193185,0.49345287,2067.0,2066.4,1.20983352]
[1772090193713,0.49345287,2066.9,2066.4,1.20983352]
[1772090194784,0.49345287,2066.9,2066.4,1.68367615]
[1772090195394,0.48777496,2067.3,2066.6,0.47384263]
[1772090195739,0.48777496,2067.3,2066.8,0.47384263]
[1772090195894,0.48777496,2067.5,2066.8,0.47384263]
[1772090196734,0.48877496,2067.7,2066.9,0.47384263]
[1772090197798,0.48877496,2067.7,2067.0,1.68332497]
[1772090198926,0.48777496,2067.6,2067.0,1.68332497]
[1772090203118,0.48777496,2067.6,2066.8,1.68340206]
[1772090203119,0.48777496,2067.5,2066.8,1.68340206]
[1772090203515,0.48777496,2067.4,2066.8,1.20955943]
[1772090203934,0.48777496,2067.4,2066.8,1.68340206]
[1772090204717,0.48777496,2067.6,2066.9,0.47384263]
[1772090206656,0.48777496,2067.6,2067.1,0.47384263]
[1772090208548,0.48777496,2067.6,2067.2,1.20936532]
[1772090208754,0.48777496,2067.6,2067.2,1.68320795]
[1772090208920,0.001,2067.4,2067.2,1.68320795]
[1772090210449,0.001,2067.4,2067.3,0.47384263]
[1772090210621,0.001,2067.4,2067.3,1.68314945]
[1772090211023,0.001,2067.7,2067.4,0.47384263]
[1772090211750,0.002,2068.1,2067.5,0.47384263]
[1772090211930,0.002,2068.1,2067.7,0.47384263]
[1772090215551,0.002,2068.1,2067.7,1.68287706]
[1772090215730,0.48977496,2068.1,2067.7,1.68287706]
[1772090216145,0.002,2068.1,2067.8,0.45191865]
[1772090216545,0.48486287,2068.1,2067.7,1.20903443]
[1772090217221,0.48486287,2068.1,2067.7,1.66095308]
[1772090219355,0.002,2068.1,2067.7,1.20903443]
[1772090219544,0.48486287,2068.3,2067.9,0.45191865]
[1772090219942,0.48486287,2068.3,2068.0,1.20889748]
[1772090221035,0.001,2068.4,2068.1,0.45191865]
[1772090221559,0.001,2068.4,2067.7,6.55627799]
[1772090221560,0.48286287,2068.3,2067.7,3.38098658]
[1772090221757,0.48286287,2068.3,2067.8,0.45191865]
[1772090222062,0.48286287,2068.3,2067.7,2.92906793]
[1772090222451,0.48286287,2068.3,2067.7,3.38098658]
[1772090222755,0.001,2067.9,2067.7,3.38098658]
[1772090225360,0.001,2067.9,2067.8,1.356]
[1772090227937,0.48386287,2067.9,2067.5,0.45191865]
[1772090228141,0.48386287,2067.9,2067.5,1.357]
[1772090229567,0.48386287,2067.9,2067.1,0.45191865]
[1772090229748,0.48386287,2067.9,2067.1,1.66133875]
[1772090230072,0.48286287,2067.7,2067.1,1.66133875]
[1772090230941,0.48286287,2067.7,2067.1,0.45191865]
[1772090231243,0.48286287,2067.5,2066.9,0.0011]
[1772090231742,0.48286287,2067.5,2066.9,0.45301865]
[1772090232781,0.48286287,2067.3,2066.9,0.45301865]
[1772090232982,0.48286287,2067.3,2066.9,0.0011]
[1772090233894,0.48286287,2067.3,2066.9,0.45301865]
[1772090235071,0.48286287,2067.3,2067.1,0.001]
[1772090235566,0.48286287,2067.5,2067.1,0.001]
[1772090237272,1.69207519,2067.5,2067.1,0.001]
[1772090238195,0.48286287,2067.4,2067.1,0.001]
[1772090241080,0.48286287,2067.4,2067.1,0.45291865]
[1772090241285,0.48286287,2067.6,2067.1,0.45291865]
[1772090242386,0.48286287,2067.6,2067.2,0.45191865]
[1772090243911,1.69199538,2067.6,2067.2,0.45191865]
[1772090244583,0.48286287,2067.6,2067.2,0.45191865]
[1772090244784,0.48286287,2067.6,2067.2,1.66128354]
[1772090245082,0.48286287,2067.6,2067.2,0.45191865]
[1772090245909,1.69199483,2067.6,2067.2,0.45191865]
[1772090246119,0.48800789,2067.5,2067.2,0.45191865]
[1772090247207,0.48800789,2067.7,2067.3,0.45423369]
[1772090247595,0.48900789,2067.9,2067.3,0.45423369]
[1772090247782,0.001,2067.9,2067.3,0.45423369]
[1772090247982,0.48900789,2067.9,2067.3,0.45423369]
[1772090248181,0.48800789,2067.8,2067.3,0.45423369]
[1772090248906,0.48800789,2067.8,2067.3,0.0011]
[1772090249208,0.001,2067.4,2067.3,0.0011]
[1772090251109,0.001,2067.4,2067.1,1.21042312]
[1772090251110,0.48900789,2067.4,2067.1,0.001]
[1772090252308,0.001,2067.4,2067.1,0.45523369]
[1772090254712,0.001,2067.4,2067.2,0.49296835]
[1772090255211,0.001,2067.4,2067.3,0.49296835]
[1772090256000,0.45342022,2067.6,2067.3,0.49296835]
[1772090256001,0.45342022,2067.8,2067.3,0.49296835]
[1772090256324,0.45342022,2067.8,2067.4,0.49296835]
[1772090256900,0.45442022,2067.9,2067.4,0.49296835]
[1772090257129,1.66338098,2067.9,2067.4,0.49296835]
[1772090257331,0.45442022,2067.9,2067.4,1.70220054]
[1772090257621,1.66337869,2067.9,2067.5,0.49296835]
[1772090258207,0.45442022,2067.9,2067.5,0.49296835]
[1772090258428,1.66337707,2067.9,2067.5,0.49296835]
[1772090259225,0.45442022,2067.9,2067.5,0.49296835]
[1772090259400,1.6633785,2067.9,2067.5,0.49296835]
[1772090259598,0.45342022,2067.7,2067.3,1.36]
[1772090260210,0.45342022,2067.7,2067.1,2.21396835]
[1772090260630,0.45342022,2067.7,2067.1,0.49396835]
[1772090261499,0.45342022,2067.5,2067.1,0.49396835]
[1772090261724,0.45342022,2067.5,2067.1,0.001]
[1772090262827,0.45342022,2067.5,2067.3,0.0011]
[1772090264726,0.45342022,2067.4,2067.3,0.0011]
[1772090265536,0.45442022,2067.6,2067.3,0.0011]
[1772090265738,0.001,2067.6,2067.3,0.49406835]
[1772090273147,0.45342022,2067.5,2067.1,0.001]
[1772090273335,0.45342022,2067.5,2067.1,1.70338552]
[1772090273540,0.45342022,2067.5,2067.2,0.49296835]
[1772090274837,0.001,2067.6,2067.2,0.49296835]
[1772090275143,3.20411599,2067.6,2067.2,0.49296835]
[1772090275349,0.45442022,2067.6,2067.2,0.49296835]
[1772090275552,0.45442022,2067.6,2067.2,1.70231646]
[1772090275736,1.21000359,2067.9,2067.3,0.49296835]
[1772090275942,2.74964026,2067.8,2067.3,0.49296835]
[1772090276541,2.74964026,2067.8,2067.4,0.47361772]
[1772090277225,0.001,2067.9,2067.6,0.47251772]
[1772090277642,0.49859012,2068.1,2067.5,0.47251772]
[1772090277842,0.002,2068.1,2067.5,0.47251772]
[1772090279458,0.002,2068.1,2067.7,0.47251772]
[1772090280353,0.49659012,2068.0,2067.7,0.47251772]
[1772090280526,0.002,2068.1,2067.7,0.47251772]
[1772090281361,0.49659012,2067.9,2067.4,3.0861]
[1772090284060,1.70560453,2067.8,2067.4,1.3661]
[1772090284361,0.49659012,2067.7,2067.4,1.3661]
[1772090286480,0.49659012,2067.7,2067.4,0.0011]
[1772090287783,1.7056676,2067.7,2067.4,0.0011]
[1772090288275,1.7056676,2067.7,2067.6,0.0011]
[1772090288480,1.7066676,2067.7,2067.6,0.0011]
[1772090290057,0.49659012,2067.6,2067.4,0.0011]
[1772090290281,0.49659012,2067.6,2067.1,0.001]
[1772090290864,0.49659012,2067.4,2067.1,0.001]
[1772090292155,0.49659012,2067.4,2065.8,0.47251772]
[1772090292357,0.49659012,2066.7,2065.8,0.47251772]
[1772090292585,0.49659012,2066.7,2065.9,0.47251772]
[1772090292785,0.49659012,2066.7,2065.6,0.47251772]
[1772090292786,0.49659012,2066.5,2065.6,0.47251772]
[1772090292990,0.49659012,2066.5,2065.8,0.47251772]
[1772090293184,0.49659012,2066.5,2065.9,1.25651772]
[1772090293772,0.49659012,2066.5,2065.9,0.47251772]
[1772090295184,1.70642364,2066.4,2065.9,0.47251772]
[1772090295786,1.70642364,2066.4,2066.0,1.364]
[1772090296295,1.70642364,2066.4,2065.9,0.47251772]
[1772090296694,1.70642364,2066.4,2066.0,1.363]
[1772090296997,0.49659012,2066.4,2066.0,1.363]
[1772090297307,1.70642685,2066.4,2066.0,1.363]
[1772090297877,1.70642685,2066.4,2065.9,0.47251772]
[1772090298078,1.70642685,2066.4,2066.0,1.364]
[1772090299006,1.70642685,2066.4,2065.9,0.47251772]
[1772090299205,1.70642685,2066.4,2066.0,1.364]
[1772090300475,1.70642685,2066.4,2066.2,0.0011]
[1772090302389,0.49659012,2066.6,2066.2,0.0011]
[1772090302593,0.49659012,2066.6,2066.2,0.47361772]
[1772090302815,0.49659012,2066.6,2066.2,1.3631]
[1772090303921,1.20977498,2066.5,2066.2,1.3631]
[1772090304096,1.7063651,2066.5,2066.2,1.3631]
[1772090305015,1.7063651,2066.5,2066.2,0.0011]
[1772090305214,0.49659012,2066.5,2066.2,1.3631]
[1772090306233,1.70636585,2066.5,2066.2,1.3631]
[1772090307009,0.47945838,2066.4,2066.2,1.3631]
[1772090308644,0.47945838,2066.4,2066.2,0.0011]
[1772090308805,0.47945838,2066.4,2066.2,1.3631]
[1772090310940,1.20975008,2066.6,2066.2,1.83013761]
[1772090311239,0.47945838,2066.5,2066.2,1.83013761]
[1772090313643,1.68924996,2066.5,2066.2,0.46813761]
[1772090313941,1.68924996,2066.5,2066.3,1.361]
[1772090317115,1.68924996,2066.5,2066.3,1.36]
[1772090317313,0.29549151,2066.8,2066.4,0.45449495]
[1772090317314,0.4766171,2066.8,2066.4,0.45449495]
[1772090317746,0.4766171,2067.0,2066.6,0.45449495]
[1772090317948,1.6861005,2067.0,2066.7,1.81449495]
[1772090318123,0.4766171,2067.0,2066.7,1.81449495]
[1772090318646,1.68602784,2067.2,2066.8,0.45449495]
[1772090318826,0.4766171,2067.1,2066.8,0.45449495]
[1772090319226,0.4766171,2067.1,2066.7,1.81449495]
[1772090321053,1.68607381,2067.1,2066.7,1.81449495]
[1772090321346,0.4766171,2067.0,2066.7,0.45449495]
[1772090321529,0.4766171,2067.0,2066.8,1.36]
[1772090323049,0.4766171,2067.1,2066.8,1.36]
[1772090324064,0.001,2066.9,2066.7,0.45449495]
[1772090324239,0.001,2066.9,2066.8,1.36]
[1772090324953,4.83754506,2067.2,2067.0,0.45449495]
[1772090325134,0.29549151,2067.5,2067.0,0.45449495]
[1772090325339,0.4766171,2067.2,2067.0,0.784]
[1772090326263,1.68600562,2067.2,2067.0,0.784]
[1772090326560,1.68574846,2067.6,2067.1,0.45449495]
[1772090329168,1.20913136,2067.6,2067.1,0.45449495]
[1772090329467,1.68574846,2067.6,2067.1,0.45449495]
[1772090329843,0.4766171,2067.5,2067.1,0.45449495]
[1772090330870,1.68583703,2067.5,2067.1,0.45449495]
[1772090335981,0.48250355,2067.4,2067.1,0.45449495]
[1772090336188,0.48250355,2067.4,2067.3,0.0011]
[1772090336359,0.48350355,2067.4,2067.3,0.0011]
[1772090336679,0.001,2067.4,2067.3,0.0011]
[1772090341788,0.48250355,2067.3,2067.0,0.0011]
[1772090342092,0.48250355,2067.3,2066.4,0.46033079]
[1772090342093,0.48250355,2066.8,2066.4,0.46033079]
[1772090342268,0.48250355,2066.8,2066.5,0.46033079]
[1772090343561,0.48250355,2067.0,2066.5,0.46033079]
[1772090343872,0.48250355,2067.0,2066.6,0.0011]
[1772090344070,1.6920444,2066.9,2066.6,0.0011]
[1772090345290,0.48250355,2066.8,2066.6,0.0011]
[1772090345488,0.48250355,2066.6,2066.4,0.0011]
[1772090345693,0.48250355,2066.8,2066.4,0.46033079]
[1772090345888,0.48250355,2066.8,2066.4,0.0011]
[1772090346094,1.69216145,2066.7,2066.4,0.0011]
[1772090346469,1.69216145,2066.7,2066.4,0.46033079]
[1772090348370,1.69216145,2066.7,2066.6,0.0011]
[1772090350690,1.98756476,2066.9,2066.6,0.0011]
[1772090351197,0.48250355,2066.8,2066.6,0.0011]
[1772090351719,0.48250355,2066.7,2066.2,0.0011]
[1772090351997,0.48250355,2066.5,2066.2,0.0011]
[1772090352388,0.48250355,2066.4,2066.2,0.0011]
[1772090353197,0.48250355,2066.4,2066.0,0.0011]
[1772090353198,0.48250355,2066.3,2066.0,0.0011]
[1772090353376,0.48250355,2066.1,2065.7,0.35289264]
[1772090353612,0.48250355,2066.1,2065.7,0.0011]
[1772090353816,0.48250355,2066.1,2065.7,0.35289264]
[1772090358255,1.69251817,2066.1,2065.7,0.35289264]
[1772090359161,0.48250355,2066.1,2065.7,0.35289264]
[1772090359359,0.48250355,2066.0,2065.7,0.35289264]
[1772090360044,0.48250355,2066.0,2065.9,0.0011]
[1772090362051,0.48250355,2066.2,2065.9,0.0011]
[1772090362262,1.69246109,2066.2,2065.9,0.0011]
[1772090362867,0.48250355,2066.2,2065.9,0.0011]
[1772090363240,1.69246104,2066.2,2065.9,0.0011]
[1772090364172,0.48250355,2066.1,2065.9,0.0011]
[1772090364577,1.20995749,2066.2,2065.9,0.0011]
[1772090364873,1.69246104,2066.2,2065.9,0.35289264]
[1772090366058,1.69246569,2066.2,2065.9,0.35289264]
[1772090366252,0.48250355,2066.2,2065.9,0.35289264]
[1772090366668,1.69246465,2066.2,2065.9,0.35289264]
[1772090369072,0.48250355,2066.2,2065.9,0.35289264]
[1772090370174,1.69245679,2066.2,2065.9,0.35289264]
[1772090370778,0.48250355,2066.2,2065.9,0.35289264]
[1772090370986,1.20992293,2066.3,2065.9,0.35289264]
[1772090370987,0.46096178,2066.3,2065.9,0.35289264]
[1772090371275,1.67074578,2066.5,2066.0,0.35179264]
[1772090371765,0.46096178,2066.4,2066.0,0.35179264]
[1772090373919,0.46880494,2066.3,2065.9,0.0011]
[1772090374074,1.20983926,2066.4,2065.7,1.3501]
[1772090374075,0.46880494,2065.9,2065.7,1.3501]
[1772090374617,5.1984697,2066.4,2065.3,1.21043665]
[1772090374618,0.44318116,2065.8,2065.4,0.0011]
[1772090374910,0.46880494,2065.7,2065.4,0.0011]
[1772090376700,0.46880494,2065.6,2065.4,0.0011]
[1772090376900,1.67901843,2065.8,2065.4,0.35289264]
[1772090377202,1.21021349,2065.8,2065.4,0.35289264]
[1772090377505,0.46880494,2065.7,2065.4,0.35289264]
[1772090379506,0.9119861,2065.6,2065.4,0.0011]
[1772090379797,0.46880494,2065.5,2065.0,0.35179264]
[1772090380592,0.46880494,2065.5,2064.8,1.56362896]
[1772090380909,0.46880494,2065.5,2064.9,0.35289264]
[1772090382002,0.46880494,2065.4,2064.9,1.56359474]
[1772090382204,1.67906259,2065.7,2065.0,0.35289264]
[1772090382528,0.46880494,2065.6,2065.0,0.35289264]
[1772090383988,0.46880494,2065.6,2065.2,0.0011]
[1772090384321,0.46880494,2065.6,2065.2,0.35399264]
[1772090384519,1.21036068,2065.5,2065.2,0.35399264]
[1772090385383,1.67914927,2065.6,2065.2,0.35399264]
[1772090385894,0.46880494,2065.5,2065.2,0.0011]
[1772090386087,1.21041928,2065.4,2065.2,0.0011]
[1772090386413,0.46880494,2065.3,2065.2,0.0011]
[1772090386987,0.46880494,2065.5,2065.2,0.0011]
[1772090387487,1.67916656,2065.5,2065.2,0.0011]
[1772090388695,0.46880494,2065.4,2065.2,0.0011]
[1772090390324,0.46880494,2065.3,2065.0,0.0011]
[1772090390729,0.46880494,2065.3,2065.0,0.35509264]
[1772090390932,1.67919654,2065.5,2065.0,0.35509264]
[1772090391212,0.44318116,2065.8,2065.2,0.35399264]
[1772090391213,1.67907671,2065.7,2065.2,0.35399264]
[1772090391389,0.46880494,2065.6,2065.2,0.35399264]
[1772090394317,1.67912032,2065.6,2065.2,0.35399264]
[1772090394994,1.21031538,2065.6,2065.2,0.35399264]
[1772090395199,0.46880494,2065.5,2065.2,0.35399264]
[1772090396104,1.21031538,2065.6,2065.2,0.35399264]
[1772090396707,1.68339453,2065.6,2065.2,0.35399264]
[1772090396909,1.68339453,2065.6,2065.4,0.0011]
[1772090397617,0.47307915,2065.5,2065.4,0.0011]
[1772090398140,0.47307915,2065.4,2064.9,0.0011]
[1772090398418,0.5,2065.1,2064.9,0.0011]
[1772090400729,0.44318116,2065.4,2064.9,0.0011]
[1772090400730,1.71065375,2065.0,2064.9,0.0011]
[1772090401225,0.49945,2064.9,2064.2,0.0011]
[1772090401817,0.44318116,2064.9,2064.2,0.0011]
[1772090402121,0.49945,2064.8,2064.2,0.0011]
[1772090403009,1.71027966,2064.7,2064.2,0.0011]
[1772090404101,0.49945,2064.7,2064.2,0.0011]
[1772090407624,0.49945,2064.8,2064.2,0.0011]
[1772090408326,0.49945,2064.7,2064.2,0.0011]
[1772090409133,0.49945,2064.7,2064.4,0.0022]
[1772090409425,0.001,2064.6,2064.4,0.0022]
[1772090410127,1.71013224,2065.0,2064.5,0.0011]
[1772090410427,0.49995,2064.9,2064.5,0.0011]
[1772090410639,0.49995,2065.0,2064.5,0.0011]
[1772090412341,0.49995,2065.0,2064.1,0.0011]
[1772090412342,0.49995,2064.4,2064.1,0.0011]
[1772090412536,0.47307915,2064.3,2064.1,0.0011]
[1772090413408,0.47307915,2064.1,2063.9,0.0011]
[1772090413605,0.47307915,2063.9,2063.3,0.46249309]
[1772090414433,1.68443683,2063.8,2063.3,0.46249309]
[1772090415314,0.47307915,2063.8,2063.3,1.2116495]
[1772090415527,0.47307915,2063.8,2063.4,0.46249309]
[1772090416547,1.68448324,2063.8,2063.4,0.46249309]
[1772090417352,0.47307915,2063.8,2063.4,0.46249309]
[1772090417528,0.47307915,2064.4,2063.5,0.46249309]
[1772090417730,0.47307915,2064.3,2063.7,0.46249309]
[1772090418644,1.68415302,2064.3,2063.8,0.46249309]
[1772090419342,0.47307915,2064.7,2063.8,0.46249309]
[1772090421360,0.47307915,2064.5,2063.9,0.46249309]
[1772090425766,1.68405477,2064.5,2064.0,0.46249309]
[1772090426061,0.47307915,2064.5,2064.0,0.46249309]
[1772090426547,1.68402679,2064.5,2064.0,0.46249309]
[1772090426753,0.46113381,2064.4,2064.0,0.46249309]
[1772090428053,1.21100889,2064.4,2064.0,0.46249309]
[1772090428351,0.46113381,2064.3,2064.0,0.46249309]